[Event "Titled Tuesday Blitz November 15 Early 2022"]
[White "Goroshkov, Maksym"]
[Black "Bruned, Yvain"]
[WhiteFideId "14142716"]
[BlackFideId "2250292"]
[WhiteElo "2257"]
[BlackElo "2183"]
[Result "1-0"]
[Round "06"]
[TimeControl "180+1"]
[Date "2022.11.16"]
[WhiteClock "0:00:17"]
[BlackClock "0:00:10"]

1. e4 {[%clk 0:02:59]}  b6 {[%clk 0:02:59]} 2. d4 {[%clk 0:03:00]}  Bb7 {[%clk 0:02:59]} 3. Bd3 {[%clk 0:02:59]}  e6 {[%clk 0:02:59]} 4. c4 {[%clk 0:02:59]}  Bb4+ {[%clk 0:02:55]} 5. Nc3 {[%clk 0:02:58]}  f5 {[%clk 0:02:52]} 6. d5 {[%clk 0:02:47]}  Bxc3+ {[%clk 0:02:37]} 7. bxc3 {[%clk 0:02:46]}  fxe4 {[%clk 0:02:38]} 8. Bxe4 {[%clk 0:02:44]}  Nf6 {[%clk 0:02:36]} 9. Bg5 {[%clk 0:02:43]}  O-O {[%clk 0:02:27]} 10. Nf3 {[%clk 0:02:42]}  exd5 {[%clk 0:02:17]} 11. Bxd5+ {[%clk 0:02:36]}  Bxd5 {[%clk 0:02:13]} 12. cxd5 {[%clk 0:02:29]}  Qe8+ {[%clk 0:02:08]} 13. Kf1 {[%clk 0:02:29]}  Na6 {[%clk 0:02:02]} 14. Bxf6 {[%clk 0:02:25]}  Rxf6 {[%clk 0:01:53]} 15. Qd4 {[%clk 0:02:26]}  Nc5 {[%clk 0:01:50]} 16. Re1 {[%clk 0:02:25]}  Qg6 {[%clk 0:01:50]} 17. h4 {[%clk 0:02:21]}  Re8 {[%clk 0:01:47]} 18. Ne5 {[%clk 0:01:58]}  Qf5 {[%clk 0:01:41]} 19. g4 {[%clk 0:01:57]}  Qf4 {[%clk 0:01:33]} 20. Kg2 {[%clk 0:01:46]}  h6 {[%clk 0:01:06]} 21. Re3 {[%clk 0:00:52]}  Qxf2+ {[%clk 0:00:56]} 22. Kh3 {[%clk 0:00:52]}  d6 {[%clk 0:00:40]} 23. Rh2 {[%clk 0:00:26]}  Qf1+ {[%clk 0:00:36]} 24. Rg2 {[%clk 0:00:26]}  Rxe5 {[%clk 0:00:33]} 25. Rxe5 {[%clk 0:00:25]}  dxe5 {[%clk 0:00:34]} 26. Qxe5 {[%clk 0:00:25]}  Qf3+ {[%clk 0:00:27]} 27. Kh2 {[%clk 0:00:24]}  Qf4+ {[%clk 0:00:26]} 28. Qxf4 {[%clk 0:00:24]}  Rxf4 {[%clk 0:00:27]} 29. Re2 {[%clk 0:00:22]}  Kf7 {[%clk 0:00:26]} 30. g5 {[%clk 0:00:21]}  hxg5 {[%clk 0:00:25]} 31. hxg5 {[%clk 0:00:22]}  Rc4 {[%clk 0:00:24]} 32. Kg3 {[%clk 0:00:20]}  Rxc3+ {[%clk 0:00:24]} 33. Kf4 {[%clk 0:00:21]}  Rd3 {[%clk 0:00:18]} 34. Ke5 {[%clk 0:00:17]}  Ke7 {[%clk 0:00:14]} 35. Kf5+ {[%clk 0:00:17]}  Kd6 {[%clk 0:00:12]} 36. Kg6 {[%clk 0:00:17]}  Rxd5 {[%clk 0:00:10]} 37. Re8 {[%clk 0:00:17]} 1-0


[Site "https://www.chess.com"]

[Event "Titled Tuesday Blitz November 15 Early 2022"]
[White "Gurvich, Vitaly"]
[Black "Osinovsky, Stepan"]
[WhiteFideId "24164852"]
[BlackFideId "4157354"]
[WhiteElo "2342"]
[BlackElo "2222"]
[Result "1-0"]
[Round "06"]
[TimeControl "180+1"]
[Date "2022.11.16"]
[WhiteClock "0:00:56"]
[BlackClock "0:00:01"]

1. e4 {[%clk 0:03:00]}  e5 {[%clk 0:02:59]} 2. Nf3 {[%clk 0:02:59]}  Nc6 {[%clk 0:03:00]} 3. Nc3 {[%clk 0:02:56]}  Nf6 {[%clk 0:02:59]} 4. h3 {[%clk 0:02:56]}  h6 {[%clk 0:02:52]} 5. d4 {[%clk 0:02:52]}  exd4 {[%clk 0:02:50]} 6. Nxd4 {[%clk 0:02:53]}  Bb4 {[%clk 0:02:47]} 7. Nxc6 {[%clk 0:02:52]}  bxc6 {[%clk 0:02:47]} 8. Bd3 {[%clk 0:02:52]}  O-O {[%clk 0:02:44]} 9. O-O {[%clk 0:02:51]}  Re8 {[%clk 0:02:32]} 10. Qf3 {[%clk 0:02:36]}  d5 {[%clk 0:02:23]} 11. exd5 {[%clk 0:02:34]}  cxd5 {[%clk 0:02:18]} 12. Bf4 {[%clk 0:02:28]}  Be6 {[%clk 0:01:50]} 13. Rad1 {[%clk 0:02:10]}  Rb8 {[%clk 0:01:02]} 14. Nb5 {[%clk 0:01:52]}  Rb7 {[%clk 0:00:36]} 15. c4 {[%clk 0:01:36]}  dxc4 {[%clk 0:00:19]} 16. Bh7+ {[%clk 0:01:35]}  Kxh7 {[%clk 0:00:17]} 17. Rxd8 {[%clk 0:01:35]}  Rxd8 {[%clk 0:00:15]} 18. Nxc7 {[%clk 0:01:34]}  Rb6 {[%clk 0:00:12]} 19. Be5 {[%clk 0:01:30]}  Nd5 {[%clk 0:00:10]} 20. Nxe6 {[%clk 0:01:27]}  Rxe6 {[%clk 0:00:09]} 21. Bd4 {[%clk 0:01:27]}  a5 {[%clk 0:00:07]} 22. Qxf7 {[%clk 0:01:24]}  Re7 {[%clk 0:00:06]} 23. Qf5+ {[%clk 0:01:23]}  Kh8 {[%clk 0:00:04]} 24. g3 {[%clk 0:01:11]}  Rd6 {[%clk 0:00:03]} 25. Qc8+ {[%clk 0:01:09]}  Kh7 {[%clk 0:00:02]} 26. Qxc4 {[%clk 0:01:09]}  Nf6 {[%clk 0:00:02]} 27. Be3 {[%clk 0:00:56]}  Re4 {[%clk 0:00:01]} 28. Qc2 {[%clk 0:00:56]} 1-0


[Site "https://www.chess.com"]

[Event "Titled Tuesday Blitz November 15 Early 2022"]
[White "Ibadov, Dashgyn"]
[Black "Hoffmann, Asa"]
[WhiteFideId "24107514"]
[BlackFideId "2001470"]
[WhiteElo "2208"]
[BlackElo "2117"]
[Result "1-0"]
[Round "06"]
[TimeControl "180+1"]
[Date "2022.11.16"]
[WhiteClock "0:01:13"]
[BlackClock "0:01:09"]

1. d4 {[%clk 0:03:00]}  Nf6 {[%clk 0:02:59]} 2. c4 {[%clk 0:03:00]}  c5 {[%clk 0:02:58]} 3. d5 {[%clk 0:02:57]}  e5 {[%clk 0:02:58]} 4. Nc3 {[%clk 0:02:52]}  d6 {[%clk 0:02:58]} 5. e4 {[%clk 0:02:52]}  Be7 {[%clk 0:02:57]} 6. Bd3 {[%clk 0:02:52]}  Nbd7 {[%clk 0:02:57]} 7. Nge2 {[%clk 0:02:52]}  Nf8 {[%clk 0:02:57]} 8. O-O {[%clk 0:02:48]}  Ng6 {[%clk 0:02:57]} 9. Ng3 {[%clk 0:02:45]}  O-O {[%clk 0:02:54]} 10. Nf5 {[%clk 0:02:44]}  Bxf5 {[%clk 0:02:49]} 11. exf5 {[%clk 0:02:44]}  Nf4 {[%clk 0:02:48]} 12. Bxf4 {[%clk 0:02:39]}  exf4 {[%clk 0:02:48]} 13. Qf3 {[%clk 0:02:39]}  Nd7 {[%clk 0:02:47]} 14. Qxf4 {[%clk 0:02:39]}  Ne5 {[%clk 0:02:47]} 15. Qd2 {[%clk 0:02:16]}  a6 {[%clk 0:02:40]} 16. f4 {[%clk 0:02:15]}  Nxd3 {[%clk 0:02:38]} 17. Qxd3 {[%clk 0:02:16]}  Bf6 {[%clk 0:02:38]} 18. Kh1 {[%clk 0:02:09]}  Re8 {[%clk 0:02:34]} 19. Rae1 {[%clk 0:02:07]}  Qa5 {[%clk 0:02:33]} 20. Ne4 {[%clk 0:02:04]}  Bxb2 {[%clk 0:02:22]} 21. f6 {[%clk 0:02:03]}  g6 {[%clk 0:02:00]} 22. Qh3 {[%clk 0:01:52]}  Rxe4 {[%clk 0:01:52]} 23. Rxe4 {[%clk 0:01:53]}  Bxf6 {[%clk 0:01:52]} 24. Qd7 {[%clk 0:01:53]}  Qxa2 {[%clk 0:01:41]} 25. Qxd6 {[%clk 0:01:50]}  Kg7 {[%clk 0:01:40]} 26. f5 {[%clk 0:01:47]}  g5 {[%clk 0:01:39]} 27. Qxc5 {[%clk 0:01:43]}  b5 {[%clk 0:01:33]} 28. cxb5 {[%clk 0:01:39]}  axb5 {[%clk 0:01:32]} 29. Qxb5 {[%clk 0:01:36]}  Ra5 {[%clk 0:01:30]} 30. Qb4 {[%clk 0:01:18]}  Rxd5 {[%clk 0:01:26]} 31. Re8 {[%clk 0:01:16]}  Qc2 {[%clk 0:01:09]} 32. Qf8# {[%clk 0:01:13]} 1-0


[Site "https://www.chess.com"]

[Event "Titled Tuesday Blitz November 15 Early 2022"]
[White "Ilkhomi, Jaloliddin"]
[Black "Gubajdullin, Alexei"]
[WhiteFideId "14700948"]
[BlackFideId "4141202"]
[WhiteElo "2045"]
[BlackElo "2230"]
[Result "1/2-1/2"]
[Round "06"]
[TimeControl "180+1"]
[Date "2022.11.16"]
[WhiteClock "0:00:07"]
[BlackClock "0:00:15"]

1. d4 {[%clk 0:03:00]}  Nf6 {[%clk 0:02:20]} 2. Nf3 {[%clk 0:02:59]}  g6 {[%clk 0:02:14]} 3. Bg5 {[%clk 0:02:58]}  Bg7 {[%clk 0:02:13]} 4. c3 {[%clk 0:02:58]}  O-O {[%clk 0:02:06]} 5. Nbd2 {[%clk 0:02:59]}  d6 {[%clk 0:02:05]} 6. e4 {[%clk 0:02:59]}  Nc6 {[%clk 0:02:00]} 7. Bc4 {[%clk 0:02:56]}  e5 {[%clk 0:01:59]} 8. dxe5 {[%clk 0:02:51]}  Nxe5 {[%clk 0:01:59]} 9. Nxe5 {[%clk 0:02:51]}  dxe5 {[%clk 0:01:59]} 10. O-O {[%clk 0:02:51]}  Qe7 {[%clk 0:01:56]} 11. Nf3 {[%clk 0:02:49]}  h6 {[%clk 0:01:55]} 12. Bxf6 {[%clk 0:02:48]}  Bxf6 {[%clk 0:01:54]} 13. h3 {[%clk 0:02:39]}  a5 {[%clk 0:01:53]} 14. Qe2 {[%clk 0:02:38]}  Kg7 {[%clk 0:01:49]} 15. Rfd1 {[%clk 0:02:38]}  c6 {[%clk 0:01:46]} 16. a4 {[%clk 0:02:37]}  Rd8 {[%clk 0:01:45]} 17. Rxd8 {[%clk 0:02:37]}  Qxd8 {[%clk 0:01:44]} 18. Rd1 {[%clk 0:02:38]}  Qe7 {[%clk 0:01:45]} 19. Nd2 {[%clk 0:02:32]}  Bd7 {[%clk 0:01:44]} 20. Nf1 {[%clk 0:02:32]}  Be8 {[%clk 0:01:43]} 21. Ne3 {[%clk 0:02:32]}  Rd8 {[%clk 0:01:43]} 22. Qg4 {[%clk 0:02:26]}  Rxd1+ {[%clk 0:01:41]} 23. Qxd1 {[%clk 0:02:26]}  Qd8 {[%clk 0:01:40]} 24. Qg4 {[%clk 0:02:15]}  h5 {[%clk 0:01:40]} 25. Qe2 {[%clk 0:02:12]}  Be7 {[%clk 0:01:38]} 26. Kh2 {[%clk 0:02:05]}  Bc5 {[%clk 0:01:37]} 27. Qf3 {[%clk 0:01:58]}  Qf6 {[%clk 0:01:34]} 28. Qxf6+ {[%clk 0:01:51]}  Kxf6 {[%clk 0:01:34]} 29. Kg3 {[%clk 0:01:52]}  Ke7 {[%clk 0:01:31]} 30. Kf3 {[%clk 0:01:50]}  h4 {[%clk 0:01:30]} 31. Bb3 {[%clk 0:01:50]}  Bd7 {[%clk 0:01:29]} 32. Nc4 {[%clk 0:01:47]}  f6 {[%clk 0:01:09]} 33. Nxa5 {[%clk 0:01:42]}  Bc8 {[%clk 0:01:09]} 34. Nc4 {[%clk 0:01:40]}  Ba7 {[%clk 0:01:09]} 35. Ne3 {[%clk 0:01:36]}  f5 {[%clk 0:01:08]} 36. Bc2 {[%clk 0:01:29]}  Kf6 {[%clk 0:01:07]} 37. Ke2 {[%clk 0:01:25]}  Be6 {[%clk 0:01:05]} 38. b4 {[%clk 0:01:20]}  Kg5 {[%clk 0:01:04]} 39. a5 {[%clk 0:01:13]}  Kf4 {[%clk 0:01:03]} 40. exf5 {[%clk 0:00:47]}  gxf5 {[%clk 0:01:03]} 41. Bd3 {[%clk 0:00:16]}  e4 {[%clk 0:00:50]} 42. Bc4 {[%clk 0:00:14]}  Bc8 {[%clk 0:00:50]} 43. b5 {[%clk 0:00:11]}  cxb5 {[%clk 0:00:44]} 44. Bxb5 {[%clk 0:00:12]}  Ke5 {[%clk 0:00:43]} 45. c4 {[%clk 0:00:09]}  f4 {[%clk 0:00:42]} 46. Nd5 {[%clk 0:00:07]}  f3+ {[%clk 0:00:37]} 47. gxf3 {[%clk 0:00:05]}  exf3+ {[%clk 0:00:35]} 48. Kxf3 {[%clk 0:00:06]}  Bxh3 {[%clk 0:00:35]} 49. Ne3 {[%clk 0:00:03]}  Be6 {[%clk 0:00:32]} 50. a6 {[%clk 0:00:02]}  b6 {[%clk 0:00:27]} 51. Ng4+ {[%clk 0:00:02]}  Kd4 {[%clk 0:00:26]} 52. Nh2 {[%clk 0:00:02]}  Bb8 {[%clk 0:00:25]} 53. Kg2 {[%clk 0:00:01]}  h3+ {[%clk 0:00:24]} 54. Kg1 {[%clk 0:00:01]}  Bxc4 {[%clk 0:00:20]} 55. Bxc4 {[%clk 0:00:02]}  Kxc4 {[%clk 0:00:20]} 56. Nf3 {[%clk 0:00:03]}  b5 {[%clk 0:00:20]} 57. Ne5+ {[%clk 0:00:03]}  Kd5 {[%clk 0:00:19]} 58. Nd7 {[%clk 0:00:03]}  Ba7 {[%clk 0:00:20]} 59. Nf6+ {[%clk 0:00:04]}  Kd4 {[%clk 0:00:18]} 60. Ne8 {[%clk 0:00:03]}  b4 {[%clk 0:00:16]} 61. Nd6 {[%clk 0:00:04]}  Kd5 {[%clk 0:00:16]} 62. Nb5 {[%clk 0:00:03]}  Bc5 {[%clk 0:00:16]} 63. a7 {[%clk 0:00:02]}  Bxa7 {[%clk 0:00:15]} 64. Nxa7 {[%clk 0:00:03]}  b3 {[%clk 0:00:16]} 65. Nb5 {[%clk 0:00:03]}  b2 {[%clk 0:00:15]} 66. Nc3+ {[%clk 0:00:04]}  Kc4 {[%clk 0:00:15]} 67. Nb1 {[%clk 0:00:04]}  Kd3 {[%clk 0:00:15]} 68. Kh2 {[%clk 0:00:05]}  Kc2 {[%clk 0:00:15]} 69. Na3+ {[%clk 0:00:05]}  Kb3 {[%clk 0:00:15]} 70. Nb1 {[%clk 0:00:06]}  Kc2 {[%clk 0:00:15]} 71. Na3+ {[%clk 0:00:06]}  Kb3 {[%clk 0:00:15]} 72. Nb1 {[%clk 0:00:07]}  Kc2 {[%clk 0:00:15]} 1/2-1/2


[Site "https://www.chess.com"]

[Event "Titled Tuesday Blitz November 15 Early 2022"]
[White "Itgelt, Khuyagtsogt"]
[Black "Stankovic, Ivan G"]
[WhiteFideId "4902912"]
[BlackFideId "902837"]
[WhiteElo "2129"]
[BlackElo "2226"]
[Result "1-0"]
[Round "06"]
[TimeControl "180+1"]
[Date "2022.11.16"]
[WhiteClock "0:00:10"]
[BlackClock "0:00:21"]

1. d4 {[%clk 0:03:00]}  d5 {[%clk 0:02:59]} 2. Nf3 {[%clk 0:03:00]}  Nf6 {[%clk 0:02:59]} 3. c4 {[%clk 0:03:01]}  c6 {[%clk 0:02:59]} 4. g3 {[%clk 0:03:01]}  g6 {[%clk 0:02:53]} 5. Nbd2 {[%clk 0:02:57]}  Bg7 {[%clk 0:02:54]} 6. Bg2 {[%clk 0:02:57]}  O-O {[%clk 0:02:54]} 7. Kf1 {[%clk 0:02:57]}  Nbd7 {[%clk 0:02:38]} 8. b3 {[%clk 0:02:55]}  c5 {[%clk 0:02:35]} 9. Bb2 {[%clk 0:02:54]}  cxd4 {[%clk 0:02:32]} 10. Bxd4 {[%clk 0:02:54]}  Re8 {[%clk 0:02:25]} 11. cxd5 {[%clk 0:02:52]}  Nxd5 {[%clk 0:02:25]} 12. Bxg7 {[%clk 0:02:51]}  Kxg7 {[%clk 0:02:26]} 13. Nc4 {[%clk 0:02:42]}  N7f6 {[%clk 0:02:18]} 14. Qd4 {[%clk 0:02:38]}  Nb4 {[%clk 0:02:07]} 15. Qc3 {[%clk 0:02:22]}  Nc6 {[%clk 0:02:03]} 16. h3 {[%clk 0:02:15]}  Be6 {[%clk 0:02:03]} 17. Ng5 {[%clk 0:02:10]}  Bxc4 {[%clk 0:02:00]} 18. bxc4 {[%clk 0:02:10]}  Rc8 {[%clk 0:01:47]} 19. c5 {[%clk 0:01:43]}  e5 {[%clk 0:01:42]} 20. Bf3 {[%clk 0:00:45]}  b6 {[%clk 0:01:30]} 21. e3 {[%clk 0:00:22]}  bxc5 {[%clk 0:01:21]} 22. Kg2 {[%clk 0:00:22]}  h6 {[%clk 0:01:09]} 23. Ne4 {[%clk 0:00:21]}  Nxe4 {[%clk 0:01:06]} 24. Bxe4 {[%clk 0:00:21]}  Qa5 {[%clk 0:00:52]} 25. Qc2 {[%clk 0:00:14]}  f5 {[%clk 0:00:49]} 26. Bxc6 {[%clk 0:00:09]}  Rxc6 {[%clk 0:00:49]} 27. Rhd1 {[%clk 0:00:08]}  Rd8 {[%clk 0:00:49]} 28. Rxd8 {[%clk 0:00:08]}  Qxd8 {[%clk 0:00:50]} 29. Rd1 {[%clk 0:00:09]}  Rd6 {[%clk 0:00:51]} 30. Rb1 {[%clk 0:00:10]}  Qc7 {[%clk 0:00:41]} 31. Qc4 {[%clk 0:00:08]}  Rb6 {[%clk 0:00:37]} 32. Rd1 {[%clk 0:00:07]}  Rd6 {[%clk 0:00:35]} 33. Rb1 {[%clk 0:00:07]}  Qc6+ {[%clk 0:00:34]} 34. Kg1 {[%clk 0:00:07]}  Rd2 {[%clk 0:00:29]} 35. Qc3 {[%clk 0:00:05]}  Qd5 {[%clk 0:00:26]} 36. Re1 {[%clk 0:00:02]}  c4 {[%clk 0:00:24]} 37. e4 {[%clk 0:00:02]}  fxe4 {[%clk 0:00:22]} 38. Qe3 {[%clk 0:00:02]}  Rd4 {[%clk 0:00:21]} 39. Qa3 {[%clk 0:00:02]}  Qd7 {[%clk 0:00:20]} 40. Qc5 {[%clk 0:00:02]}  Rd1 {[%clk 0:00:19]} 41. Qxe5+ {[%clk 0:00:03]}  Kh7 {[%clk 0:00:20]} 42. Qxe4 {[%clk 0:00:03]}  Rxe1+ {[%clk 0:00:19]} 43. Qxe1 {[%clk 0:00:04]}  c3 {[%clk 0:00:19]} 44. Qxc3 {[%clk 0:00:04]}  Qd1+ {[%clk 0:00:19]} 45. Kh2 {[%clk 0:00:05]}  Qd5 {[%clk 0:00:19]} 46. Qc7+ {[%clk 0:00:05]}  Kg8 {[%clk 0:00:19]} 47. Qc2 {[%clk 0:00:05]}  a5 {[%clk 0:00:19]} 48. Qb3 {[%clk 0:00:06]}  Qxb3 {[%clk 0:00:16]} 49. axb3 {[%clk 0:00:07]}  Kf7 {[%clk 0:00:17]} 50. f4 {[%clk 0:00:08]}  Ke6 {[%clk 0:00:17]} 51. g4 {[%clk 0:00:08]}  Kd5 {[%clk 0:00:17]} 52. Kg3 {[%clk 0:00:09]}  Ke4 {[%clk 0:00:17]} 53. h4 {[%clk 0:00:09]}  Kd5 {[%clk 0:00:16]} 54. Kf3 {[%clk 0:00:09]}  Kd4 {[%clk 0:00:17]} 55. h5 {[%clk 0:00:06]}  gxh5 {[%clk 0:00:15]} 56. gxh5 {[%clk 0:00:06]}  Kd5 {[%clk 0:00:15]} 57. Kg4 {[%clk 0:00:06]}  Ke6 {[%clk 0:00:16]} 58. Kf3 {[%clk 0:00:06]}  Kd5 {[%clk 0:00:16]} 59. Ke3 {[%clk 0:00:06]}  Kc5 {[%clk 0:00:16]} 60. Ke4 {[%clk 0:00:06]}  Kb4 {[%clk 0:00:17]} 61. f5 {[%clk 0:00:07]}  Kxb3 {[%clk 0:00:17]} 62. f6 {[%clk 0:00:07]}  a4 {[%clk 0:00:18]} 63. f7 {[%clk 0:00:08]}  a3 {[%clk 0:00:19]} 64. f8=Q {[%clk 0:00:09]}  a2 {[%clk 0:00:20]} 65. Qf7+ {[%clk 0:00:09]}  Kc2 {[%clk 0:00:21]} 66. Qxa2+ {[%clk 0:00:10]} 1-0


[Site "https://www.chess.com"]

[Event "Titled Tuesday Blitz November 15 Early 2022"]
[White "Jarmula, Lukasz"]
[Black "Ibarra Jerez, Jose Carlos"]
[WhiteFideId "1160664"]
[BlackFideId "2226332"]
[WhiteElo "2357"]
[BlackElo "2638"]
[Result "1/2-1/2"]
[Round "06"]
[TimeControl "180+1"]
[Date "2022.11.15"]
[WhiteClock "0:00:14"]
[BlackClock "0:00:09"]

1. b3 {[%clk 0:03:00]}  e5 {[%clk 0:02:57]} 2. Bb2 {[%clk 0:03:00]}  Nc6 {[%clk 0:02:57]} 3. e3 {[%clk 0:03:01]}  d5 {[%clk 0:02:58]} 4. Bb5 {[%clk 0:03:00]}  Ne7 {[%clk 0:02:58]} 5. d3 {[%clk 0:02:52]}  a6 {[%clk 0:02:57]} 6. Bxc6+ {[%clk 0:02:51]}  Nxc6 {[%clk 0:02:58]} 7. Nd2 {[%clk 0:02:52]}  Bc5 {[%clk 0:02:32]} 8. Ngf3 {[%clk 0:02:49]}  d4 {[%clk 0:02:31]} 9. exd4 {[%clk 0:02:45]}  exd4 {[%clk 0:02:30]} 10. O-O {[%clk 0:02:42]}  O-O {[%clk 0:02:30]} 11. h3 {[%clk 0:02:42]}  f5 {[%clk 0:02:16]} 12. a3 {[%clk 0:02:40]}  g5 {[%clk 0:02:01]} 13. b4 {[%clk 0:02:39]}  Ba7 {[%clk 0:01:59]} 14. Re1 {[%clk 0:02:23]}  g4 {[%clk 0:01:46]} 15. Ne5 {[%clk 0:02:23]}  Nxe5 {[%clk 0:01:39]} 16. Rxe5 {[%clk 0:02:23]}  Qf6 {[%clk 0:01:40]} 17. f4 {[%clk 0:02:09]}  Qh6 {[%clk 0:01:28]} 18. Qf1 {[%clk 0:02:04]}  Bd7 {[%clk 0:01:22]} 19. Qf2 {[%clk 0:01:58]}  gxh3 {[%clk 0:01:21]} 20. Nf3 {[%clk 0:01:41]}  Qxf4 {[%clk 0:01:07]} 21. Bxd4 {[%clk 0:01:25]}  Bxd4 {[%clk 0:01:03]} 22. Qxd4 {[%clk 0:01:25]}  Qxd4+ {[%clk 0:00:59]} 23. Nxd4 {[%clk 0:01:24]}  hxg2 {[%clk 0:00:59]} 24. Kxg2 {[%clk 0:01:18]}  Rae8 {[%clk 0:00:58]} 25. Rae1 {[%clk 0:01:18]}  Rxe5 {[%clk 0:00:53]} 26. Rxe5 {[%clk 0:01:19]}  Kg7 {[%clk 0:00:51]} 27. Kf3 {[%clk 0:01:19]}  f4 {[%clk 0:00:45]} 28. Re7+ {[%clk 0:01:12]}  Rf7 {[%clk 0:00:44]} 29. Rxf7+ {[%clk 0:01:12]}  Kxf7 {[%clk 0:00:44]} 30. Kxf4 {[%clk 0:01:13]}  Kf6 {[%clk 0:00:42]} 31. Nf3 {[%clk 0:01:05]}  h5 {[%clk 0:00:40]} 32. c4 {[%clk 0:01:00]}  Bf5 {[%clk 0:00:35]} 33. d4 {[%clk 0:00:58]}  Bd3 {[%clk 0:00:34]} 34. Ne5 {[%clk 0:00:58]}  Bf1 {[%clk 0:00:31]} 35. d5 {[%clk 0:00:52]}  h4 {[%clk 0:00:23]} 36. Ng4+ {[%clk 0:00:52]}  Kg6 {[%clk 0:00:22]} 37. Ne3 {[%clk 0:00:49]}  Be2 {[%clk 0:00:20]} 38. c5 {[%clk 0:00:48]}  Kf6 {[%clk 0:00:17]} 39. a4 {[%clk 0:00:48]}  h3 {[%clk 0:00:14]} 40. Kg3 {[%clk 0:00:39]}  Ke5 {[%clk 0:00:15]} 41. Kxh3 {[%clk 0:00:35]}  Bf3 {[%clk 0:00:14]} 42. d6 {[%clk 0:00:19]}  cxd6 {[%clk 0:00:11]} 43. Nc4+ {[%clk 0:00:19]}  Kd4 {[%clk 0:00:11]} 44. cxd6 {[%clk 0:00:19]}  Bc6 {[%clk 0:00:06]} 45. Nb6 {[%clk 0:00:18]}  Kc3 {[%clk 0:00:04]} 46. Nd5+ {[%clk 0:00:15]}  Kb3 {[%clk 0:00:03]} 47. Nb6 {[%clk 0:00:14]}  Kxb4 {[%clk 0:00:03]} 48. d7 {[%clk 0:00:14]}  Bxd7+ {[%clk 0:00:03]} 49. Nxd7 {[%clk 0:00:15]}  Kxa4 {[%clk 0:00:03]} 50. Nc5+ {[%clk 0:00:15]}  Kb5 {[%clk 0:00:03]} 51. Nxb7 {[%clk 0:00:16]}  Kb6 {[%clk 0:00:03]} 52. Nd6 {[%clk 0:00:16]}  Kc5 {[%clk 0:00:04]} 53. Nb7+ {[%clk 0:00:16]}  Kc6 {[%clk 0:00:04]} 54. Na5+ {[%clk 0:00:16]}  Kb5 {[%clk 0:00:05]} 55. Nb7 {[%clk 0:00:15]}  Kb6 {[%clk 0:00:05]} 56. Nd6 {[%clk 0:00:15]}  Kc7 {[%clk 0:00:06]} 57. Nc4 {[%clk 0:00:15]}  Kc6 {[%clk 0:00:06]} 58. Kg4 {[%clk 0:00:15]}  Kd5 {[%clk 0:00:07]} 59. Na5 {[%clk 0:00:14]}  Kc5 {[%clk 0:00:08]} 60. Kf4 {[%clk 0:00:14]}  Kb4 {[%clk 0:00:08]} 61. Nb7 {[%clk 0:00:14]}  a5 {[%clk 0:00:09]} 62. Nxa5 {[%clk 0:00:14]} 1/2-1/2


[Site "https://www.chess.com"]

[Event "Titled Tuesday Blitz November 15 Early 2022"]
[White "Kopacz, Grzegorz"]
[Black "Rostomyan, Mikayel"]
[WhiteFideId "1109880"]
[BlackFideId "13313754"]
[WhiteElo "2037"]
[BlackElo "2009"]
[Result "0-1"]
[Round "06"]
[TimeControl "180+1"]
[Date "2022.11.16"]
[WhiteClock "0:00:18"]
[BlackClock "0:00:19"]

1. d4 {[%clk 0:03:00]}  d5 {[%clk 0:02:58]} 2. c4 {[%clk 0:03:01]}  e5 {[%clk 0:02:58]} 3. dxe5 {[%clk 0:03:00]}  Ne7 {[%clk 0:02:57]} 4. cxd5 {[%clk 0:02:56]}  Qxd5 {[%clk 0:02:58]} 5. Qxd5 {[%clk 0:02:51]}  Nxd5 {[%clk 0:02:59]} 6. Nc3 {[%clk 0:02:51]}  Nb4 {[%clk 0:02:59]} 7. Kd1 {[%clk 0:02:48]}  N8c6 {[%clk 0:02:57]} 8. a3 {[%clk 0:02:48]}  Na6 {[%clk 0:02:46]} 9. f4 {[%clk 0:02:45]}  Nc5 {[%clk 0:02:44]} 10. b4 {[%clk 0:02:33]}  Nb3 {[%clk 0:02:39]} 11. Rb1 {[%clk 0:02:32]}  Be6 {[%clk 0:02:31]} 12. e4 {[%clk 0:02:27]}  O-O-O+ {[%clk 0:02:29]} 13. Ke1 {[%clk 0:02:22]}  g6 {[%clk 0:02:14]} 14. Nf3 {[%clk 0:02:21]}  Nxc1 {[%clk 0:02:12]} 15. Rxc1 {[%clk 0:02:20]}  a5 {[%clk 0:02:10]} 16. b5 {[%clk 0:02:12]}  Nd4 {[%clk 0:02:09]} 17. Nxd4 {[%clk 0:02:03]}  Rxd4 {[%clk 0:02:10]} 18. b6 {[%clk 0:01:54]}  Bxa3 {[%clk 0:02:02]} 19. Rd1 {[%clk 0:01:52]}  Bb4 {[%clk 0:01:56]} 20. Rc1 {[%clk 0:01:44]}  Rxe4+ {[%clk 0:01:45]} 21. Kf2 {[%clk 0:01:42]}  Rxf4+ {[%clk 0:01:37]} 22. Ke3 {[%clk 0:01:36]}  g5 {[%clk 0:01:31]} 23. bxc7 {[%clk 0:01:36]}  Rf5 {[%clk 0:01:24]} 24. Nb5 {[%clk 0:01:20]}  Rxe5+ {[%clk 0:01:19]} 25. Kf3 {[%clk 0:01:12]}  Bd5+ {[%clk 0:01:15]} 26. Kf2 {[%clk 0:01:08]}  Bc6 {[%clk 0:01:14]} 27. Na7+ {[%clk 0:01:05]}  Kxc7 {[%clk 0:01:13]} 28. Nxc6 {[%clk 0:01:06]}  bxc6 {[%clk 0:01:14]} 29. Be2 {[%clk 0:01:05]}  Bc5+ {[%clk 0:01:10]} 30. Kg3 {[%clk 0:01:05]}  Bd6 {[%clk 0:01:02]} 31. Bf3 {[%clk 0:01:04]}  c5 {[%clk 0:00:44]} 32. Ra1 {[%clk 0:01:02]}  h5 {[%clk 0:00:42]} 33. Kf2 {[%clk 0:01:00]}  g4 {[%clk 0:00:41]} 34. Be2 {[%clk 0:00:59]}  Rf5+ {[%clk 0:00:41]} 35. Ke1 {[%clk 0:00:56]}  c4 {[%clk 0:00:35]} 36. Bxc4 {[%clk 0:00:52]}  Re8+ {[%clk 0:00:34]} 37. Kd1 {[%clk 0:00:49]}  Bb4 {[%clk 0:00:32]} 38. h3 {[%clk 0:00:44]}  g3 {[%clk 0:00:30]} 39. Rc1 {[%clk 0:00:38]}  Kb6 {[%clk 0:00:29]} 40. Rc2 {[%clk 0:00:33]}  Rf2 {[%clk 0:00:25]} 41. Rxf2 {[%clk 0:00:25]}  gxf2 {[%clk 0:00:26]} 42. Rf1 {[%clk 0:00:25]}  Be1 {[%clk 0:00:19]} 43. Bxf7 {[%clk 0:00:23]}  Rd8+ {[%clk 0:00:19]} 44. Ke2 {[%clk 0:00:23]}  h4 {[%clk 0:00:20]} 45. Bb3 {[%clk 0:00:20]}  Kb5 {[%clk 0:00:19]} 46. Ke3 {[%clk 0:00:18]}  Kb4 {[%clk 0:00:19]} 47. Be6 {[%clk 0:00:18]}  Re8 {[%clk 0:00:19]} 0-1


[Site "https://www.chess.com"]

[Event "Titled Tuesday Blitz November 15 Early 2022"]
[White "Kopczynski, Michal"]
[Black "Fernandez Hernandez, Gerardo"]
[WhiteFideId "1124200"]
[BlackFideId "2207400"]
[WhiteElo "2235"]
[BlackElo "2216"]
[Result "1-0"]
[Round "06"]
[TimeControl "180+1"]
[Date "2022.11.16"]
[WhiteClock "0:02:07"]
[BlackClock "0:00:18"]

1. e4 {[%clk 0:03:00]}  e6 {[%clk 0:02:59]} 2. d4 {[%clk 0:03:01]}  d5 {[%clk 0:03:00]} 3. Nc3 {[%clk 0:03:01]}  Nc6 {[%clk 0:03:00]} 4. e5 {[%clk 0:03:02]}  f6 {[%clk 0:02:59]} 5. f4 {[%clk 0:03:02]}  fxe5 {[%clk 0:03:00]} 6. fxe5 {[%clk 0:03:03]}  Qh4+ {[%clk 0:03:00]} 7. g3 {[%clk 0:03:03]}  Qxd4 {[%clk 0:03:01]} 8. Bf4 {[%clk 0:02:59]}  g5 {[%clk 0:02:41]} 9. Qh5+ {[%clk 0:02:45]}  Kd7 {[%clk 0:02:29]} 10. Rd1 {[%clk 0:02:39]}  Qc5 {[%clk 0:02:07]} 11. Bh3 {[%clk 0:02:31]}  Nge7 {[%clk 0:01:43]} 12. Bxg5 {[%clk 0:02:31]}  Nd4 {[%clk 0:01:19]} 13. Nf3 {[%clk 0:02:17]}  Nxc2+ {[%clk 0:01:09]} 14. Kd2 {[%clk 0:02:17]}  Nd4 {[%clk 0:00:57]} 15. Nxd4 {[%clk 0:02:11]}  Qxd4+ {[%clk 0:00:56]} 16. Kc1 {[%clk 0:02:12]}  Qxe5 {[%clk 0:00:45]} 17. Rhe1 {[%clk 0:02:11]}  Qd6 {[%clk 0:00:28]} 18. Rxe6 {[%clk 0:02:05]}  Qxe6 {[%clk 0:00:25]} 19. Bxe6+ {[%clk 0:02:06]}  Kxe6 {[%clk 0:00:25]} 20. Bxe7 {[%clk 0:02:06]}  Bxe7 {[%clk 0:00:20]} 21. Qxd5+ {[%clk 0:02:06]}  Kf6 {[%clk 0:00:20]} 22. Qd4+ {[%clk 0:02:06]}  Kf7 {[%clk 0:00:18]} 23. Qxh8 {[%clk 0:02:07]} 1-0


[Site "https://www.chess.com"]